[Event "95th Caplin Hastings Congress"]
[Site "Hastings"]
[Date "2019.12.28"]
[Round "1.25"]
[White "Petrov, Vladimir Sergeev"]
[Black "Unnikrishnan, Midhun P"]
[Result "1/2-1/2"]
[ECO "C47"]
[WhiteElo "2355"]
[BlackElo "2135"]
[Annotator "ChessBase"]
[PlyCount "108"]
[EventDate "2019.12.28"]
[EventType "swiss"]
[EventCountry "ENG"]
[SourceTitle "playchess.com"]
[Source "ChessBase"]
[SourceQuality "1"]
[TimeControl "40/6600+30:3000+30"]

1. e4 {[%emt 0:09:32]} e5 {[%emt 0:09:38]} 2. Nf3 {[%emt 0:00:19]} Nc6 {[%emt 0:00:07]} 3. Nc3 {[%emt 0:00:20]} Nf6 {[%emt 0:00:08]} 4. d4 {[%emt 0:00:03]} exd4 {[%emt 0:00:35]} 5. Nxd4 {[%emt 0:00:04]} Bb4 {[%emt 0:00:23]} 6. Nxc6 {[%emt 0:00:07]} bxc6 {[%emt 0:00:11]} 7. Bd3 {[%emt 0:00:10]} d5 {[%emt 0:00:25]} 8. exd5 {[%emt 0:00:07]} cxd5 {[%emt 0:00:04]} 9. O-O {[%emt 0:00:05]} O-O {[%emt 0:00:08]} 10. Bg5 {[%emt 0:00:05]} c6 {[%emt 0:00:16]} 11. Qf3 {[%emt 0:00:22]} Be7 {[%emt 0:00:29]} 12. Rae1 {[%emt 0:00:07]} Rb8 {[%emt 0:01:35]} 13. b3 {[%emt 0:00:15]} Bb4 {[%emt 0:12:37]} 14. Qg3 {[%emt 0:00:08]} Bd7 {[%emt 0:33:40]} 15. Bd2 {[%emt 0:00:16]} Be6 {[%emt 0:10:33]} 16. Nb1 {[%emt 0:02:53]} Bxd2 {[%emt 0:04:55]} 17. Nxd2 {[%emt 0:00:02]} Rb4 {[%emt 0:04:23]} 18. Nf3 {[%emt 0:11:06]} Nh5 {[%emt 0:07:50]} 19. Qe5 {[%emt 0:16:28]} Nf4 {[%emt 0:01:53]} 20. Bf5 {[%emt 0:16:29]} Qb8 {[%emt 0:07:33]} 21. a3 {[%emt 0:11:10]} Rb6 {[%emt 0:08:01]} 22. Bxe6 {[%emt 0:00:56]} Nxe6 {[%emt 0:00:14]} 23. Qf5 {[%emt 0:01:13]} Qd6 {[%emt 0:00:42]} 24. Ne5 {[%emt 0:12:50]} c5 {[%emt 0:02:10]} 25. Re3 {[%emt 0:04:15]} Nd4 {[%emt 0:01:20]} 26. Qd3 {[%emt 0:00:08]} Rbb8 {[%emt 0:00:15]} 27. Rfe1 {[%emt 0:01:04]} h6 {[%emt 0:02:36]} 28. b4 {[%emt 0:02:09]} Rb7 {[%emt 0:02:05]} 29. Rd1 {[%emt 0:16:00]} Ne6 {[%emt 0:01:17]} 30. bxc5 {[%emt 0:09:15]} Qxc5 {[%emt 0:00:06]} 31. Qf5 {[%emt 0:02:37]} d4 {[%emt 0:00:53]} 32. Rf3 {[%emt 0:02:21]} Rb5 {[%emt 0:01:01]} 33. a4 {[%emt 0:01:37]} Ra5 {[%emt 0:00:37]} 34. Re1 {[%emt 0:00:12]} d3 {[%emt 0:01:13]} 35. Qxd3 {[%emt 0:00:50]} Rxa4 {[%emt 0:01:24]} 36. Nxf7 {[%emt 0:01:07]} Rxf7 {[%emt 0:04:20]} 37. Rxf7 {[%emt 0:00:09]} Qa5 {[%emt 0:00:04]} 38. Qe3 {[%emt 0:01:36]} Ra1 {[%emt 0:00:10]} 39. Rxg7+ {[%emt 0:00:29]} Kxg7 {[%emt 0:01:20]} 40. c3 {[%emt 0:00:27]} Rxe1+ {[%emt 0:00:21]} 41. Qxe1 {[%emt 0:50:02]} Qd5 {[%emt 0:50:18]} 42. g3 {[%emt 0:00:23]} Ng5 {[%emt 0:00:42]} 43. Qe7+ {[%emt 0:00:07]} Qf7 {[%emt 0:00:15]} 44. Qe5+ {[%emt 0:00:16]} Kh7 {[%emt 0:00:19]} 45. Qc5 {[%emt 0:00:00]} Qd7 {[%emt 0:00:00]} 46. h4 {[%emt 0:00:00]} Nf3+ {[%emt 0:00:00]} 47. Kg2 {[%emt 0:00:00]} Nd2 48. f3 {[%emt 0:05:08]} a6 {[%emt 0:03:56]} 49. g4 {[%emt 0:00:00]} Qd3 {[%emt 0:00:00]} 50. Qe7+ {[%emt 0:00:00]} Kg8 {[%emt 0:00:00]} 51. Qe8+ {[%emt 0:00:00]} Kg7 {[%emt 0:00:00]} 52. Qe7+ {[%emt 0:00:00]} Kg8 {[%emt 0:00:00]} 53. Qe8+ {[%emt 0:00:00]} Kg7 {[%emt 0:00:00]} 54. Qd7+ Qxd7 1/2-1/2

[Event "95th Caplin Hastings Congress"]
[Site "Hastings"]
[Date "2019.12.28"]
[Round "1.26"]
[White "Ryzhkov, Vjacheslav"]
[Black "Willow, Jonah B"]
[Result "0-1"]
[ECO "B22"]
[WhiteElo "2134"]
[BlackElo "2355"]
[Annotator "NA"]
[PlyCount "60"]
[EventDate "2019.12.28"]
[EventType "swiss"]
[EventCountry "ENG"]
[SourceTitle "playchess.com"]
[Source "ChessBase"]
[SourceQuality "1"]
[TimeControl "40/6600+30:3000+30"]

1. e4 {[%emt 0:09:33]} c5 {[%emt 0:09:37]} 2. c3 {[%emt 0:00:22]} Nf6 {[%emt 0:00:06]} 3. e5 {[%emt 0:00:10]} Nd5 {[%emt 0:00:04]} 4. d4 {[%emt 0:00:10]} cxd4 {[%emt 0:00:05]} 5. cxd4 {[%emt 0:00:18]} g6 {[%emt 0:00:08]} 6. Qb3 {[%emt 0:03:53]} Nb6 {[%emt 0:14:01]} 7. Nc3 {[%emt 0:02:01]} Nc6 {[%emt 0:07:46]} 8. Nf3 {[%emt 0:04:12]} Bg7 {[%emt 0:01:02]} 9. a4 {[%emt 0:02:43]} a5 {[%emt 0:05:22]} 10. Bf4 {[%emt 0:03:40]} d6 {[%emt 0:07:30]} 11. h4 {[%emt 0:28:59]} Bg4 {[%emt 0:04:22]} 12. Bb5 {[%emt 0:18:59]} O-O {[%emt 0:01:44]} 13. O-O-O {[%emt 0:03:16]} Nb4 {[%emt 0:05:46]} 14. h5 {[%emt 0:02:57]} Rc8 {[%emt 0:01:56]} 15. hxg6 {[%emt 0:01:29]} hxg6 {[%emt 0:00:08]} 16. d5 {[%emt 0:14:01]} dxe5 {[%emt 0:13:13]} 17. Bh6 {[%emt 0:04:32]} N6xd5 {[%emt 0:02:57]} 18. Bc4 {[%emt 0:04:32]} e6 {[%emt 0:01:01]} 19. Rd2 {[%emt 0:02:20]} Bxh6 {[%emt 0:04:14]} 20. Rxh6 {[%emt 0:00:07]} Bxf3 {[%emt 0:00:03]} 21. gxf3 {[%emt 0:00:10]} Qg5 {[%emt 0:00:14]} 22. Rh1 {[%emt 0:00:24]} Nxc3 {[%emt 0:00:40]} 23. bxc3 {[%emt 0:00:37]} Qf4 {[%emt 0:11:55]} 24. Bxe6 {[%emt 0:03:17]} fxe6 {[%emt 0:08:37]} 25. Qxe6+ {[%emt 0:00:06]} Qf7 {[%emt 0:00:37]} 26. Qh3 {[%emt 0:03:07]} Rxc3+ {[%emt 0:00:14]} 27. Kb1 {[%emt 0:00:14]} Rb3+ {[%emt 0:00:49]} 28. Ka1 {[%emt 0:00:15]} Ra3+ {[%emt 0:00:04]} 29. Kb1 {[%emt 0:00:05]} Qb3+ {[%emt 0:00:14]} 30. Rb2 {[%emt 0:00:20]} Qd3+ {[%emt 0:00:02]} 0-1

[Event "95th Caplin Hastings Congress"]
[Site "Hastings"]
[Date "2019.12.28"]
[Round "1.27"]
[White "Bates, Richard A"]
[Black "Patrick, Chaski"]
[Result "1-0"]
[ECO "E11"]
[WhiteElo "2342"]
[BlackElo "2131"]
[Annotator "NA"]
[PlyCount "85"]
[EventDate "2019.12.28"]
[EventType "swiss"]
[EventCountry "ENG"]
[SourceTitle "playchess.com"]
[Source "ChessBase"]
[SourceQuality "1"]
[TimeControl "40/6600+30:3000+30"]

1. d4 {[%emt 0:10:00]} d5 {[%emt 0:14:07]} 2. c4 {[%emt 0:00:23]} e6 {[%emt 0:00:05]} 3. Nf3 {[%emt 0:01:15]} Nf6 {[%emt 0:02:47]} 4. g3 {[%emt 0:00:56]} Bb4+ {[%emt 0:11:48]} 5. Bd2 {[%emt 0:00:33]} Bxd2+ {[%emt 0:02:14]} 6. Qxd2 {[%emt 0:00:38]} O-O {[%emt 0:07:38]} 7. Bg2 {[%emt 0:00:36]} Ne4 {[%emt 0:06:10]} 8. Qc2 {[%emt 0:02:01]} Nc6 {[%emt 0:05:49]} 9. O-O {[%emt 0:05:07]} a5 {[%emt 0:06:59]} 10. Nc3 {[%emt 0:04:54]} Nxc3 {[%emt 0:10:01]} 11. bxc3 {[%emt 0:06:54]} f5 {[%emt 0:05:41]} 12. e3 {[%emt 0:06:24]} Qf6 {[%emt 0:08:26]} 13. Nd2 {[%emt 0:05:24]} Ne7 {[%emt 0:01:54]} 14. cxd5 {[%emt 0:04:44]} exd5 {[%emt 0:00:58]} 15. f4 {[%emt 0:07:14]} Qe6 {[%emt 0:02:58]} 16. Rfe1 {[%emt 0:02:07]} a4 {[%emt 0:05:12]} 17. Rab1 {[%emt 0:01:11]} b6 {[%emt 0:10:10]} 18. c4 {[%emt 0:03:00]} Bb7 {[%emt 0:01:58]} 19. Nf3 {[%emt 0:10:29]} Kh8 {[%emt 0:03:16]} 20. Ne5 {[%emt 0:00:31]} Ra7 {[%emt 0:01:17]} 21. c5 {[%emt 0:01:10]} Rc8 {[%emt 0:02:56]} 22. Rec1 {[%emt 0:02:48]} g6 {[%emt 0:00:21]} 23. Qb2 {[%emt 0:07:57]} Kg7 {[%emt 0:00:06]} 24. Qa3 {[%emt 0:03:19]} Ra5 {[%emt 0:02:43]} 25. cxb6 {[%emt 0:05:48]} cxb6 {[%emt 0:00:16]} 26. Rxc8 {[%emt 0:00:21]} Nxc8 {[%emt 0:00:23]} 27. Rc1 {[%emt 0:00:15]} Nd6 {[%emt 0:03:36]} 28. Rc7+ {[%emt 0:00:33]} Kg8 {[%emt 0:00:13]} 29. Rd7 {[%emt 0:02:50]} Ne8 {[%emt 0:00:44]} 30. Rxb7 {[%emt 0:03:41]} Rb5 {[%emt 0:00:10]} 31. h4 {[%emt 0:03:19]} Rb1+ {[%emt 0:01:15]} 32. Kh2 {[%emt 0:00:28]} Qd6 {[%emt 0:00:24]} 33. Qxd6 {[%emt 0:01:00]} Nxd6 {[%emt 0:00:01]} 34. Bxd5+ {[%emt 0:00:15]} Kf8 {[%emt 0:00:16]} 35. Rxh7 {[%emt 0:02:37]} Rb2+ {[%emt 0:00:47]} 36. Kh3 {[%emt 0:01:15]} Ne4 {[%emt 0:00:04]} 37. Rf7+ {[%emt 0:03:29]} Ke8 {[%emt 0:00:09]} 38. Bc6+ {[%emt 0:00:14]} Kd8 {[%emt 0:00:04]} 39. Rd7+ {[%emt 0:00:23]} Ke8 {[%emt 0:00:10]} 40. Ra7+ {[%emt 0:01:00]} Kd8 {[%emt 0:00:48]} 41. Bxe4 {[%emt 0:50:31]} fxe4 {[%emt 0:51:05]} 42. d5 {[%emt 0:00:37]} Rd2 {[%emt 0:00:19]} 43. d6 {[%emt 0:00:28]} 1-0

[Event "95th Caplin Hastings Congress"]
[Site "Hastings"]
[Date "2019.12.28"]
[Round "1.28"]
[White "Persson, Andreas"]
[Black "Rudd, Jack"]
[Result "0-1"]
[ECO "E63"]
[WhiteElo "2112"]
[BlackElo "2331"]
[Annotator "NA"]
[PlyCount "108"]
[EventDate "2019.12.28"]
[EventType "swiss"]
[EventCountry "ENG"]
[SourceTitle "playchess.com"]
[Source "ChessBase"]
[SourceQuality "1"]
[TimeControl "40/6600+30:3000+30"]

1. d4 {[%emt 0:09:34]} d6 {[%emt 0:09:34]} 2. Nf3 {[%emt 0:00:58]} Nf6 {[%emt 0:00:09]} 3. g3 {[%emt 0:00:54]} g6 {[%emt 0:00:07]} 4. Bg2 {[%emt 0:01:12]} Bg7 {[%emt 0:00:07]} 5. O-O {[%emt 0:01:35]} O-O {[%emt 0:00:21]} 6. c4 {[%emt 0:01:53]} Nc6 {[%emt 0:00:07]} 7. Nc3 {[%emt 0:02:12]} a6 {[%emt 0:00:05]} 8. b3 {[%emt 0:03:10]} Rb8 {[%emt 0:01:24]} 9. Nd5 {[%emt 0:01:28]} Nd7 {[%emt 0:01:27]} 10. Bb2 {[%emt 0:08:19]} b5 {[%emt 0:02:29]} 11. Rc1 {[%emt 0:05:59]} bxc4 {[%emt 0:01:44]} 12. Rxc4 {[%emt 0:00:08]} Na5 {[%emt 0:01:42]} 13. Rc2 {[%emt 0:04:54]} c6 {[%emt 0:01:36]} 14. Ne3 {[%emt 0:04:27]} Nf6 {[%emt 0:01:54]} 15. Ne1 {[%emt 0:09:16]} Bd7 {[%emt 0:00:45]} 16. Nd3 {[%emt 0:01:28]} Qb6 {[%emt 0:02:11]} 17. Qa1 {[%emt 0:14:25]} Rfc8 {[%emt 0:01:04]} 18. b4 {[%emt 0:06:44]} Nb7 {[%emt 0:00:16]} 19. Nc4 {[%emt 0:03:50]} Qa7 {[%emt 0:00:19]} 20. e4 {[%emt 0:03:21]} d5 {[%emt 0:03:37]} 21. Nd2 {[%emt 0:05:10]} dxe4 {[%emt 0:00:48]} 22. Nxe4 {[%emt 0:00:37]} Nxe4 {[%emt 0:00:10]} 23. Bxe4 {[%emt 0:00:14]} Nd6 {[%emt 0:00:06]} 24. Bg2 {[%emt 0:03:50]} Bf5 {[%emt 0:01:19]} 25. Rd1 {[%emt 0:04:03]} Bxd3 {[%emt 0:00:20]} 26. Rxd3 {[%emt 0:00:05]} Rxb4 {[%emt 0:00:15]} 27. Qe1 {[%emt 0:05:06]} Rcb8 {[%emt 0:01:21]} 28. Ba1 {[%emt 0:03:06]} Nf5 {[%emt 0:01:52]} 29. Rxc6 {[%emt 0:02:00]} Nxd4 {[%emt 0:00:10]} 30. Bxd4 {[%emt 0:01:21]} Bxd4 {[%emt 0:00:09]} 31. Rc2 {[%emt 0:02:57]} e5 {[%emt 0:02:45]} 32. h4 {[%emt 0:01:10]} Qb6 {[%emt 0:02:23]} 33. Kh2 {[%emt 0:02:04]} Rb1 {[%emt 0:02:05]} 34. Qe2 {[%emt 0:00:59]} Rb2 {[%emt 0:02:58]} 35. Rdd2 {[%emt 0:01:30]} Rxc2 {[%emt 0:00:30]} 36. Rxc2 {[%emt 0:00:05]} a5 {[%emt 0:00:14]} 37. Bd5 {[%emt 0:01:46]} Rd8 {[%emt 0:03:57]} 38. Qf3 {[%emt 0:02:24]} Rd7 {[%emt 0:00:19]} 39. Rc6 {[%emt 0:03:21]} Qb2 {[%emt 0:03:27]} 40. Kg2 {[%emt 0:01:51]} Qxf2+ {[%emt 0:01:40]} 41. Qxf2 {[%emt 0:00:35]} Bxf2 {[%emt 0:00:08]} 42. Bb3 {[%emt 0:03:06]} Be1 {[%emt 0:01:36]} 43. Kf3 {[%emt 0:01:36]} Kg7 {[%emt 0:00:41]} 44. Rc1 {[%emt 0:00:42]} Bb4 {[%emt 0:00:26]} 45. Ke4 {[%emt 0:00:41]} Re7 {[%emt 0:00:51]} 46. g4 {[%emt 0:00:36]} f6 {[%emt 0:00:45]} 47. Rc8 {[%emt 0:01:43]} h5 {[%emt 0:00:28]} 48. gxh5 {[%emt 0:02:39]} f5+ {[%emt 0:00:11]} 49. Kd5 {[%emt 0:01:19]} gxh5 {[%emt 0:00:09]} 50. Kc6 {[%emt 0:02:52]} e4 {[%emt 0:00:18]} 51. Rg8+ {[%emt 0:00:50]} Kf6 {[%emt 0:00:08]} 52. Bd1 {[%emt 0:02:15]} Re6+ {[%emt 0:00:23]} 53. Kb5 {[%emt 0:00:32]} f4 {[%emt 0:00:12]} 54. Bxh5 {[%emt 0:00:35]} Re5+ {[%emt 0:00:06]} 0-1

[Event "95th Caplin Hastings Congress"]
[Site "Hastings"]
[Date "2019.12.28"]
[Round "1.29"]
[White "Grieve, Harry"]
[Black "Hutchinson, Paul A"]
[Result "1-0"]
[ECO "B01"]
[WhiteElo "2299"]
[BlackElo "2112"]
[Annotator "ChessBase"]
[PlyCount "165"]
[EventDate "2019.12.28"]
[EventType "swiss"]
[EventCountry "ENG"]
[SourceTitle "playchess.com"]
[Source "ChessBase"]
[SourceQuality "1"]
[TimeControl "40/6600+30:3000+30"]

1. e4 {[%emt 0:09:34]} d5 {[%emt 0:14:54]} 2. exd5 {[%emt 0:00:07]} Qxd5 {[%emt 0:00:10]} 3. Nc3 {[%emt 0:00:11]} Qa5 {[%emt 0:00:16]} 4. d4 {[%emt 0:00:20]} Nf6 {[%emt 0:00:19]} 5. Bc4 {[%emt 0:00:27]} c6 {[%emt 0:00:33]} 6. Bd2 {[%emt 0:00:31]} Bf5 {[%emt 0:01:13]} 7. Nd5 {[%emt 0:00:33]} Qd8 {[%emt 0:00:07]} 8. Nxf6+ {[%emt 0:00:06]} gxf6 {[%emt 0:00:06]} 9. Nf3 {[%emt 0:00:14]} e6 {[%emt 0:01:00]} 10. O-O {[%emt 0:01:16]} Nd7 {[%emt 0:00:12]} 11. Re1 {[%emt 0:01:58]} Nb6 {[%emt 0:01:24]} 12. Bb3 {[%emt 0:03:03]} Bg4 {[%emt 0:00:41]} 13. h3 {[%emt 0:08:57]} Bh5 {[%emt 0:08:31]} 14. Qe2 {[%emt 0:07:43]} Qd7 {[%emt 0:03:14]} 15. Rad1 {[%emt 0:09:50]} Bg7 {[%emt 0:14:56]} 16. a4 {[%emt 0:12:03]} O-O {[%emt 0:05:56]} 17. a5 {[%emt 0:03:49]} Nd5 {[%emt 0:09:40]} 18. c4 {[%emt 0:01:18]} Nc7 {[%emt 0:00:14]} 19. Bc3 {[%emt 0:05:00]} Rfe8 {[%emt 0:02:51]} 20. Qe3 {[%emt 0:05:25]} Rad8 {[%emt 0:02:29]} 21. Ba4 {[%emt 0:12:37]} Qd6 {[%emt 0:08:24]} 22. Rc1 {[%emt 0:07:07]} a6 {[%emt 0:09:47]} 23. Nd2 {[%emt 0:03:49]} f5 {[%emt 0:03:07]} 24. Nb3 {[%emt 0:02:38]} f4 {[%emt 0:02:53]} 25. Qd2 {[%emt 0:02:05]} Na8 {[%emt 0:07:22]} 26. Nc5 {[%emt 0:10:13]} Qb8 {[%emt 0:04:47]} 27. d5 {[%emt 0:03:42]} e5 {[%emt 0:00:58]} 28. Qc2 {[%emt 0:01:52]} Qc8 {[%emt 0:06:09]} 29. dxc6 {[%emt 0:03:08]} bxc6 {[%emt 0:00:10]} 30. Qe4 {[%emt 0:01:31]} Rd6 {[%emt 0:00:18]} 31. Bc2 {[%emt 0:01:06]} Bg6 {[%emt 0:00:11]} 32. Qf3 {[%emt 0:00:38]} Nc7 {[%emt 0:01:22]} 33. Bxg6 {[%emt 0:02:38]} Rxg6 {[%emt 0:00:21]} 34. Rcd1 {[%emt 0:00:39]} Ne6 {[%emt 0:00:43]} 35. Ne4 {[%emt 0:00:47]} Ng5 {[%emt 0:04:20]} 36. Nxg5 {[%emt 0:00:11]} Rxg5 {[%emt 0:00:07]} 37. Rd6 {[%emt 0:00:45]} Rg6 {[%emt 0:00:15]} 38. Red1 {[%emt 0:00:36]} Bf8 {[%emt 0:04:02]} 39. Rxg6+ {[%emt 0:00:32]} hxg6 {[%emt 0:00:07]} 40. Qg4 {[%emt 0:00:28]} Qxg4 {[%emt 0:04:16]} 41. hxg4 {[%emt 0:50:13]} e4 {[%emt 0:50:06]} 42. Kf1 {[%emt 0:00:00]} c5 {[%emt 0:00:00]} 43. g5 {[%emt 0:00:00]} Be7 {[%emt 0:00:00]} 44. Rd5 {[%emt 0:00:00]} Kf8 {[%emt 0:00:00]} 45. Ke2 {[%emt 0:00:00]} Rc8 {[%emt 0:00:00]} 46. Re5 {[%emt 0:00:00]} Rc6 {[%emt 0:00:00]} 47. Rxe4 {[%emt 0:00:00]} Bxg5 {[%emt 0:00:00]} 48. Kf3 {[%emt 0:00:00]} f5 {[%emt 0:00:00]} 49. Re5 {[%emt 0:00:00]} Kf7 {[%emt 0:00:00]} 50. Rd5 {[%emt 0:00:15]} Ke8 {[%emt 0:00:00]} 51. b3 {[%emt 0:03:18]} Bd8 {[%emt 0:00:00]} 52. Kxf4 {[%emt 0:00:43]} Bc7+ {[%emt 0:00:00]} 53. Kg5 {[%emt 0:01:08]} Bd8+ {[%emt 0:00:00]} 54. Kh6 {[%emt 0:01:08]} Be7 {[%emt 0:00:00]} 55. f3 {[%emt 0:00:47]} Kf7 {[%emt 0:00:00]} 56. g4 {[%emt 0:00:29]} fxg4 {[%emt 0:01:51]} 57. fxg4 {[%emt 0:00:02]} Re6 {[%emt 0:00:30]} 58. Re5 {[%emt 0:00:59]} Rd6 {[%emt 0:00:45]} 59. Re3 {[%emt 0:00:26]} g5+ {[%emt 0:00:48]} 60. Kh5 {[%emt 0:00:30]} Rd1 {[%emt 0:00:08]} 61. Rf3+ {[%emt 0:00:21]} Ke6 {[%emt 0:00:07]} 62. Kg6 {[%emt 0:00:40]} Rg1 {[%emt 0:00:10]} 63. Bf6 {[%emt 0:00:31]} Bd6 {[%emt 0:02:33]} 64. Re3+ {[%emt 0:00:06]} Kd7 {[%emt 0:00:10]} 65. Kxg5 {[%emt 0:00:23]} Bc7 {[%emt 0:01:02]} 66. Kf5 {[%emt 0:00:48]} Rf1+ {[%emt 0:00:46]} 67. Kg6 {[%emt 0:00:16]} Bxa5 {[%emt 0:00:06]} 68. g5 {[%emt 0:00:26]} Bc7 {[%emt 0:00:24]} 69. Kf7 {[%emt 0:00:51]} Bf4 {[%emt 0:00:29]} 70. Re7+ {[%emt 0:00:26]} Kc6 {[%emt 0:00:10]} 71. Re6+ {[%emt 0:00:40]} Kb7 {[%emt 0:00:12]} 72. g6 {[%emt 0:00:19]} Bh6 {[%emt 0:00:10]} 73. Re5 {[%emt 0:00:47]} Kc6 {[%emt 0:00:21]} 74. Rh5 {[%emt 0:00:15]} Bf8 {[%emt 0:00:14]} 75. Kxf8 {[%emt 0:00:10]} Rxf6+ {[%emt 0:00:06]} 76. Kg7 {[%emt 0:00:05]} Rf3 {[%emt 0:00:07]} 77. Kh8 {[%emt 0:01:11]} Rxb3 {[%emt 0:01:09]} 78. g7 {[%emt 0:00:06]} Rb8+ {[%emt 0:00:09]} 79. g8=Q {[%emt 0:00:25]} Rxg8+ {[%emt 0:00:05]} 80. Kxg8 {[%emt 0:00:05]} a5 {[%emt 0:00:06]} 81. Rh6+ {[%emt 0:00:04]} Kb7 {[%emt 0:00:16]} 82. Kf7 {[%emt 0:00:13]} a4 {[%emt 0:00:05]} 83. Ke7 {[%emt 0:00:13]} 1-0

[Event "95th Caplin Hastings Congress"]
[Site "Hastings"]
[Date "2019.12.28"]
[Round "1.30"]
[White "Price, Gwilym"]
[Black "Terentiev, Sergei"]
[Result "1/2-1/2"]
[ECO "B41"]
[WhiteElo "2110"]
[BlackElo "2292"]
[Annotator "NA"]
[PlyCount "95"]
[EventDate "2019.12.28"]
[EventType "swiss"]
[EventCountry "ENG"]
[SourceTitle "playchess.com"]
[Source "ChessBase"]
[SourceQuality "1"]
[TimeControl "40/6600+30:3000+30"]

1. e4 {[%emt 0:09:33]} c5 {[%emt 0:10:47]} 2. Nf3 {[%emt 0:00:03]} e6 {[%emt 0:00:10]} 3. d4 {[%emt 0:00:04]} cxd4 {[%emt 0:00:11]} 4. Nxd4 {[%emt 0:00:06]} a6 {[%emt 0:00:09]} 5. c4 {[%emt 0:00:17]} Nf6 {[%emt 0:00:27]} 6. Nc3 {[%emt 0:00:09]} Bb4 {[%emt 0:00:11]} 7. Qd3 {[%emt 0:00:13]} Nc6 {[%emt 0:00:32]} 8. Nxc6 {[%emt 0:00:15]} dxc6 {[%emt 0:00:10]} 9. Qxd8+ {[%emt 0:00:09]} Kxd8 {[%emt 0:00:09]} 10. e5 {[%emt 0:00:07]} Nd7 {[%emt 0:03:51]} 11. Bf4 {[%emt 0:00:07]} f6 {[%emt 0:00:14]} 12. O-O-O {[%emt 0:04:18]} Ke7 {[%emt 0:00:14]} 13. Ne4 {[%emt 0:06:46]} Nxe5 {[%emt 0:01:52]} 14. Bxe5 {[%emt 0:01:38]} fxe5 {[%emt 0:00:10]} 15. a3 {[%emt 0:00:08]} Ba5 {[%emt 0:00:38]} 16. c5 {[%emt 0:00:14]} Bc7 {[%emt 0:01:42]} 17. h4 {[%emt 0:04:40]} Rf8 {[%emt 0:15:22]} 18. Rh3 {[%emt 0:04:30]} Rf4 {[%emt 0:00:34]} 19. f3 {[%emt 0:16:46]} Bd7 {[%emt 0:11:46]} 20. Rg3 {[%emt 0:06:00]} g6 {[%emt 0:13:50]} 21. h5 {[%emt 0:11:22]} Be8 {[%emt 0:00:57]} 22. h6 {[%emt 0:08:14]} Bf7 {[%emt 0:12:12]} 23. Be2 {[%emt 0:05:02]} Rd8 {[%emt 0:01:36]} 24. Rxd8 {[%emt 0:01:21]} Kxd8 {[%emt 0:05:36]} 25. Rh3 {[%emt 0:02:15]} Ke7 {[%emt 0:02:52]} 26. g3 {[%emt 0:00:54]} Rf5 {[%emt 0:00:16]} 27. g4 {[%emt 0:00:14]} Rf4 {[%emt 0:00:11]} 28. g5 {[%emt 0:00:22]} Bd8 {[%emt 0:08:09]} 29. Kd2 {[%emt 0:05:45]} Kd7 {[%emt 0:02:32]} 30. Ke3 {[%emt 0:03:27]} Be7 {[%emt 0:02:40]} 31. b4 {[%emt 0:03:11]} Kc7 {[%emt 0:01:05]} 32. Rh1 {[%emt 0:03:52]} Bg8 {[%emt 0:01:07]} 33. Bc4 {[%emt 0:05:57]} Rf8 {[%emt 0:04:41]} 34. Rd1 {[%emt 0:01:36]} Rf5 {[%emt 0:00:42]} 35. Rg1 {[%emt 0:00:37]} Rf4 {[%emt 0:00:11]} 36. Rg4 {[%emt 0:00:51]} Rf8 {[%emt 0:01:15]} 37. Rg2 {[%emt 0:00:27]} b5 {[%emt 0:00:35]} 38. Bb3 {[%emt 0:06:14]} a5 {[%emt 0:01:46]} 39. Rd2 {[%emt 0:01:16]} a4 {[%emt 0:03:45]} 40. Bc2 {[%emt 0:02:04]} Rf4 {[%emt 0:00:18]} 41. Rg2 {[%emt 0:52:14]} Rh4 {[%emt 0:50:28]} 42. Kf2 {[%emt 0:03:21]} Bf7 {[%emt 0:02:20]} 43. Rg4 {[%emt 0:02:41]} Rh1 {[%emt 0:02:05]} 44. Rg1 {[%emt 0:00:52]} Rh2+ {[%emt 0:00:11]} 45. Rg2 {[%emt 0:00:07]} Rh1 {[%emt 0:00:08]} 46. Rg1 {[%emt 0:00:44]} Rh2+ {[%emt 0:00:08]} 47. Rg2 {[%emt 0:00:04]} Rh1 {[%emt 0:00:08]} 48. Rg1 {[%emt 0:00:05]} 1/2-1/2

[Event "95th Caplin Hastings Congress"]
[Site "Hastings"]
[Date "2019.12.28"]
[Round "1.31"]
[White "White, Stuart A"]
[Black "Okhai, Shabir"]
[Result "1/2-1/2"]
[ECO "E54"]
[WhiteElo "2106"]
[BlackElo "2103"]
[Annotator "ChessBase"]
[PlyCount "83"]
[EventDate "2019.12.28"]
[EventType "swiss"]
[EventCountry "ENG"]
[SourceTitle "playchess.com"]
[Source "ChessBase"]
[SourceQuality "1"]
[TimeControl "40/6600+30:3000+30"]

1. d4 {[%emt 0:09:32]} Nf6 {[%emt 0:10:13]} 2. c4 {[%emt 0:00:05]} e6 {[%emt 0:00:06]} 3. Nc3 {[%emt 0:00:02]} Bb4 {[%emt 0:00:57]} 4. e3 {[%emt 0:00:22]} O-O {[%emt 0:00:56]} 5. Bd3 {[%emt 0:00:05]} d5 {[%emt 0:00:59]} 6. Nf3 {[%emt 0:00:09]} c5 {[%emt 0:01:07]} 7. O-O {[%emt 0:00:13]} cxd4 {[%emt 0:00:21]} 8. exd4 {[%emt 0:00:10]} dxc4 {[%emt 0:00:10]} 9. Bxc4 {[%emt 0:00:08]} b6 {[%emt 0:00:34]} 10. Bg5 {[%emt 0:00:07]} Bb7 {[%emt 0:00:38]} 11. Rc1 {[%emt 0:00:48]} Nbd7 {[%emt 0:02:07]} 12. Re1 {[%emt 0:07:23]} Qb8 {[%emt 0:09:22]} 13. Ne5 {[%emt 0:08:25]} Bd6 {[%emt 0:09:08]} 14. f4 {[%emt 0:05:27]} a6 {[%emt 0:08:46]} 15. Qb3 {[%emt 0:12:09]} b5 {[%emt 0:21:12]} 16. Bxe6 {[%emt 0:11:19]} fxe6 {[%emt 0:05:14]} 17. Qxe6+ {[%emt 0:00:58]} Kh8 {[%emt 0:00:07]} 18. Nxd7 {[%emt 0:05:10]} Nxd7 {[%emt 0:00:10]} 19. Qxd7 {[%emt 0:00:35]} Bc8 {[%emt 0:03:54]} 20. Qc6 {[%emt 0:17:54]} Bb7 {[%emt 0:00:39]} 21. Qd7 {[%emt 0:02:35]} Bc8 {[%emt 0:00:34]} 22. Qc6 {[%emt 0:00:13]} Bb7 {[%emt 0:00:06]} 23. Qb6 {[%emt 0:00:22]} Bc7 {[%emt 0:00:39]} 24. Qe6 {[%emt 0:04:55]} Bxf4 {[%emt 0:02:56]} 25. Bxf4 {[%emt 0:00:58]} Qxf4 {[%emt 0:00:10]} 26. Qe3 {[%emt 0:03:29]} Qg4 {[%emt 0:01:42]} 27. Rc2 {[%emt 0:04:16]} Rad8 {[%emt 0:02:46]} 28. Rf2 {[%emt 0:04:17]} Rxf2 {[%emt 0:03:55]} 29. Qxf2 {[%emt 0:00:08]} h6 {[%emt 0:01:58]} 30. Ne2 {[%emt 0:00:48]} Kh7 {[%emt 0:10:11]} 31. Nf4 {[%emt 0:03:42]} Rf8 {[%emt 0:04:49]} 32. g3 {[%emt 0:05:39]} Qf5 {[%emt 0:04:08]} 33. Qe3 {[%emt 0:07:11]} Rc8 {[%emt 0:04:35]} 34. Qe7 {[%emt 0:01:52]} Ba8 {[%emt 0:02:17]} 35. Qe6 {[%emt 0:02:14]} Qc2 {[%emt 0:02:46]} 36. d5 {[%emt 0:01:09]} Rc4 {[%emt 0:01:34]} 37. Re2 {[%emt 0:01:57]} Qd1+ {[%emt 0:00:31]} 38. Kf2 {[%emt 0:00:06]} Qd4+ {[%emt 0:02:20]} 39. Qe3 {[%emt 0:00:33]} Bxd5 {[%emt 0:00:46]} 40. Qxd4 {[%emt 0:01:19]} Rxd4 {[%emt 0:00:02]} 41. Nxd5 {[%emt 0:01:20]} Rxd5 {[%emt 0:04:11]} 42. Rc2 {[%emt 0:02:59]} 1/2-1/2